Workbook

Sheet Index
A1: Coulomb
A2: Farad
A3: Voltage Ripple Capacitor
A4: VA (volt-amper)
A5: Decibel
A6: RF Free-space Path Loss
A7: Volt Amper to Farad
A8: Resistor Equivalence
A9: AC Power Factor
A10: AC Inductive Reactance X(L)
A11: AC Capacitive Reactance X(C)
A12: AC Voltage Phase Shift
A13: AC Impedance
A14: Back EMF of Inductor
A15: Inductor Stored Energy
A16: Coupling Capacitor
A17: RMS to DC Converter
A18: Coil Design
A19: Ideal Transformer
A20: Mutual inductance
A21: Sinusoidal Waveform
A22: Passive RC Filter
A23: Passive LC Filter
A24: Varicap Junction Capacitance
A25: RC Charge Time
A26: RL Charge Time
A27: LC Resonance Frequency
A28: AVR PWM
A29: Maximum Power Transfer
A30: Kirchhoff MATRIX
A31: Thévenin`s theorem
A32: Rect. Conductor Magnetic Field
A33: AWG
A34: Colpitts Oscilator
A35: NPN Common Emitter
A36: NPN Common Collector
A37: NE555 Astable
A38: Thermal Resistance
A39: Thermal Noise
A40: Heat Sink Calculator
A41: Buck Converter Power Dissipated

Sheet Coulomb
A1: Index
B3: Formulas:
B8: Slove coulomb:
C9: A= | D9: 5 | E9: Amper
C10: s= | D10: =1/480000 -> 2.083333333e-06 | E10: Seconds
C11: C= | D11: =D9*D10 -> 1.041666667e-05 | E11: Coulomb
B13: Slove amper
C14: C= | D14: 72 | E14: Coulomb
C15: s= | D15: 3600 | E15: Seconds
C16: A= | D16: =D14/D15 -> 0.02 | E16: Amper
B18: Slove seconds
C19: C= | D19: 25200 | E19: Coulomb
C20: A= | D20: 0.4 | E20: Amper
C21: s= | D21: =D19/D20 -> 63000 | E21: Seconds
B23: References:
C24: http://en.wikipedia.org/wiki/Coulomb

Sheet Farad
A1: Index
B2: Formulas:
B9: Slove Farad:
C10: C= | D10: 25200 | E10: Coulomb
C11: V= | D11: 12 | E11: Volt
C12: F= | D12: =D10/D11 -> 2100 | E12: Farad
B19: References:
C20: http://en.wikipedia.org/wiki/Farad

Sheet Voltage Ripple Capacitor
A1: Index
B2: Formulas:
B10: Slove Farad:
C11: V= | D11: 1 | E11: Volts
C12: I= | D12: 4 | E12: Amper
C13: f= | D13: 10000 | E13: Hz
C14: t= | D14: =1/D13 -> 0.0001 | E14: Seconds
C15: Q= | D15: =D12*D14 -> 0.0004 | E15: Coulomb
C16: F= | D16: =D15/D11 -> 0.0004 | E16: Farad
B20: References:
C21: https://pt.wikipedia.org/wiki/Ripple

Sheet VA (volt-amper)
A1: Index
B4: Formulas:
B10: Single phase amps to VA:
C11: A | D11: 20 | E11: Amps
C12: V | D12: 230 | E12: Volts
C13: VA | D13: =D11*D12 -> 4600 | E13: Volt-Amp
B15: Single phase VA to amps: | C15: VA | D15: 3000 | E15: Volt-Amp
C16: V | D16: 230 | E16: Volt
C17: A | D17: =D15/D16 -> 13.04347826 | E17: Amps
B19: 3 phase amps to VA:
C20: A | D20: 1.086956522 | E20: Amps
C21: V | D21: 230 | E21: Volts
C22: VA | D22: =3*D20*D21 -> 750 | E22: Volt-Amp
B24: References:
C26: https://www.rapidtables.com/calc/electric/va-to-amps-calculator.html
C27: https://pt.wikipedia.org/wiki/Voltampere

Sheet Decibel
A1: Index
B4: Formulas:
B10: Slove Amplitude Gain:
C11: V | D11: 20 | E11: Volt
C12: Vref | D12: 10 | E12: Volt
C13: VA | D13: =20*LOG(D11/D12) -> 6.020599913 | E13: dBV
B15: Slove Power Gain: | C15: W | D15: 20 | E15: Watt
C16: Wref | D16: 10 | E16: Watt
C17: A | D17: =10*LOG(D15/D16) -> 3.010299957 | E17: dBW
B19: Slove RF Signal Srength
C20: W | D20: 0.0006 | E20: Watt
C21: Wref | D21: 0.001 | E21: Watt
C22: VA | D22: =10*LOG(D20/D21) -> -2.218487496 | E22: dBm
B25: Slove dBm to Watt:
C26: dBm | D26: -44 | E26: dBm
C27: W | D27: =10^(D26/10)*0.001 -> 3.981071706e-08 | E27: Watt
B35: References:

Sheet RF Free-space Path Loss
A1: Index
B4: Formulas:
H21: dB vs Power, Vrms and Vpp with impedance of 50 Ohms | N21: Distance (Metter) vs Attenuation (dB) and Power (W)
H22: dB | I22: Power | J22: Vrms | K22: Vpp | N22: Distance | O22: Attenuation | P22: Power | Q22: Vrms | R22: Vpp
B23: Slove Free-space path loss: | C23: Power TX: | D23: 4 | E23: Watt | H23: 0 | I23: =10^(H23/10) -> 1 | J23: =SQRT(I23/50) -> 0.1414213562 | K23: =SQRT(2)*J23 -> 0.2 | L23: EXCELENT SIGNAL | N23: 0.1 | O23: -12 | P23: =10^(O23/10)/$N$23 -> 0.6309573445 | Q23: =SQRT(P23/50) -> 0.1123349763 | R23: =SQRT(2)*P23 -> 0.8923084338
C24: Antenna Gain TX: | D24: =5/2.15 -> 2.325581395 | E24: dBi | H24: -1 | I24: 0.7943282347 | J24: 0.1260419164 | K24: 0.1782501876 | N24: =N23*2 -> 0.2 | O24: =O23-6 -> -18 | P24: 0.1584893192 | Q24: 0.05630085599 | R24: 0.2241377448
C25: Antenna Gain RX: | D25: 2.325581395 | E25: dBi | H25: -2 | I25: 0.6309573445 | J25: 0.1123349763 | K25: 0.1588656469 | N25: 0.4 | O25: -24 | P25: 0.03981071706 | Q25: 0.02821727026 | R25: 0.05630085599
C26: Power Loss: | D26: 0 | E26: dB | H26: -3 | I26: 0.5011872336 | J26: 0.100118653 | K26: 0.1415891569 | N26: 0.8 | O26: -30 | P26: 0.01 | Q26: 0.01414213562 | R26: 0.01414213562
C27: Frequency: | D27: 2400000000 | E27: Hertz | H27: -4 | I27: 0.3981071706 | J27: 0.08923084338 | K27: 0.1261914689 | N27: 1.6 | O27: -36 | P27: 0.002511886432 | Q27: 0.007087857831 | R27: 0.003552343859
C28: Distance: | D28: 35 | E28: Metter | H28: -5 | I28: 0.316227766 | J28: 0.07952707288 | K28: 0.112468265 | N28: 3.2 | O28: -42 | P28: 0.0006309573445 | Q28: 0.003552343859 | R28: 0.0008923084338
C29: Impedance: | D29: 50 | E29: Ohm | H29: -6 | I29: 0.2511886432 | J29: 0.07087857831 | K29: 0.1002374467 | N29: 6.4 | O29: -48 | P29: 0.0001584893192 | Q29: 0.001780389391 | R29: 0.0002241377448
C30: Speed of Ligth= | D30: 299792458 | E30: Metter/s | H30: -7 | I30: 0.1995262315 | J30: 0.06317059941 | K30: 0.08933671843 | N30: 12.8 | O30: -54 | P30: 3.981071706e-05 | Q30: 0.0008923084338 | R30: 5.630085599e-05
C31: Wavelength= | D31: =D30/D27 -> 0.1249135242 | E31: Lambda | H31: -8 | I31: 0.1584893192 | J31: 0.05630085599 | K31: 0.07962143411 | N31: 25.6 | O31: -60 | P31: 1e-05 | Q31: 0.0004472135955 | R31: 1.414213562e-05
C32: Power RX= | D32: =(10^(D24/10)*10^(D25/10)*10^(D26/10))*(D23/(4*PI()*D28^2))*((D31^2)/(4*PI())) -> 9.415413029e-07 | E32: Watt | H32: -9 | I32: 0.1258925412 | J32: 0.05017819072 | K32: 0.07096267785 | N32: 51.2 | O32: -66 | P32: 2.511886432e-06 | Q32: 0.0002241377448 | R32: 3.552343859e-06
C33: Vrms RX= | D33: =SQRT(D32/D29) -> 0.000137225457 | E33: Volt RMS | H33: -10 | I33: 0.1 | J33: 0.04472135955 | K33: 0.0632455532 | N33: 102.4 | O33: -72 | P33: 6.309573445e-07 | Q33: 0.0001123349763 | R33: 8.923084338e-07
C34: Vpp RX= | D34: =SQRT(2)*D33 -> 0.0001940661024 | E34: Volt Peak to Peak | H34: -20 | I34: 0.01 | J34: 0.01414213562 | K34: 0.02 | N34: 204.8 | O34: -78 | P34: 1.584893192e-07 | Q34: 5.630085599e-05 | R34: 2.241377448e-07
C35: FSPL= | D35: =10*LOG(D32) -> -60.26160624 | E35: dB | H35: -30 | I35: 0.001 | J35: 0.004472135955 | K35: 0.00632455532 | L35: GOOD SIGNAL | N35: 409.6 | O35: -84 | P35: 3.981071706e-08 | Q35: 2.821727026e-05 | R35: 5.630085599e-08
H36: -40 | I36: 0.0001 | J36: 0.001414213562 | K36: 0.002 | N36: 819.2 | O36: -90 | P36: 1e-08 | Q36: 1.414213562e-05 | R36: 1.414213562e-08
H37: -50 | I37: 1e-05 | J37: 0.0004472135955 | K37: 0.000632455532 | N37: 1638.4 | O37: -96 | P37: 2.511886432e-09 | Q37: 7.087857831e-06 | R37: 3.552343859e-09
H38: -60 | I38: 1e-06 | J38: 0.0001414213562 | K38: 0.0002 | L38: MEDIUM SIGNAL | N38: 3276.8 | O38: -102 | P38: 6.309573445e-10 | Q38: 3.552343859e-06 | R38: 8.923084338e-10
B39: References: | H39: -70 | I39: 1e-07 | J39: 4.472135955e-05 | K39: 6.32455532e-05 | N39: 6553.6 | O39: -108 | P39: 1.584893192e-10 | Q39: 1.780389391e-06 | R39: 2.241377448e-10
C40: https://en.wikipedia.org/wiki/Free-space_path_loss | H40: -80 | I40: 1e-08 | J40: 1.414213562e-05 | K40: 2e-05 | N40: 13107.2 | O40: -114 | P40: 0 | Q40: 8.923084338e-07 | R40: 0
C41: https://en.wikipedia.org/wiki/Directivity | H41: -90 | I41: 1e-09 | J41: 4.472135955e-06 | K41: 6.32455532e-06 | N41: 26214.4 | O41: -120 | P41: 0 | Q41: 4.472135955e-07 | R41: 0
C42: https://www.pasternack.com/t-calculator-friis.aspx | H42: -100 | I42: 1e-10 | J42: 1.414213562e-06 | K42: 2e-06 | N42: 52428.8 | O42: -126 | P42: 0 | Q42: 2.241377448e-07 | R42: 0
H43: -110 | I43: 0 | J43: 4.472135955e-07 | K43: 6.32455532e-07 | N43: 104857.6 | O43: -132 | P43: 0 | Q43: 1.123349763e-07 | R43: 0
H44: -120 | I44: 0 | J44: 1.414213562e-07 | K44: 2e-07 | L44: BAD SIGNAL | N44: 209715.2 | O44: -138 | P44: 0 | Q44: 5.630085599e-08 | R44: 0
N45: 419430.4 | O45: -144 | P45: 0 | Q45: 2.821727026e-08 | R45: 0

Sheet Volt Amper to Farad
A1: Index
B2: Formulas:
B9: Slove Farad:
C10: Volts= | D10: 12 | E10: Volt
C11: Ampers= | D11: 8 | E11: Amper
C12: Time= | D12: 3600 | E12: Seconds
C13: Coulombs= | D13: =D11*D12 -> 28800 | E13: Coulomb
C14: Farad= | D14: =D13/D10 -> 2400 | E14: Farad
B16: References:
C17: http://en.wikipedia.org/wiki/Farad

Sheet Resistor Equivalence
A1: Index
B2: Formulas:

Sheet AC Power Factor
A1: Index
B2: Formulas:
B9: Slove AC Real Power | C9: V | D9: 220 | E9: Volt
C10: I | D10: 5 | E10: Amper
C11: Phi | D11: 50 | E11: Angle º
C12: Cos(Phi) | D12: =COS(D11*PI()/180) -> 0.6427876097 | E12: Cos Phi
C13: P | D13: =D9*D10*D12 -> 707.0663707 | E13: W
B16: Slove AC Reactive Power | C16: V | D16: 220 | E16: Volt
C17: I | D17: 5 | E17: Amper
C18: Phi | D18: 50 | E18: Angle º
C19: Sin(Phi) | D19: =SIN(D18*PI()/180) -> 0.7660444431 | E19: Sin Phi
C20: Q | D20: =D16*D17*D19 -> 842.6488874 | E20: VAr | H20: Q - Reactive Power (Volt-Amper)
H21: S - Apparent Power (Volt-Amper)
H22: P - Real Power (Wat)
B23: Slove AC Apparent Power | C23: V | D23: 220 | E23: Volt | H23: PF - Power Factor
C24: I | D24: 5 | E24: Amper
C25: S | D25: =D23*D24 -> 1100 | E25: VA
B29: References:
C30: https://en.wikipedia.org/wiki/Power_factor
C31: https://www.electronics-tutorials.ws/accircuits/power-triangle.html

Sheet AC Inductive Reactance X(L)
A1: Index
B2: Formulas:
M5: 254nh
M6: 63nh
B7: Slove inductance:
C8: F= | D8: 3000 | E8: Hertz | F8: =D10*1000 -> 10.61032954 | G8: m
C9: Xl= | D9: 200 | E9: Ohms | F9: =F8*1000 -> 10610.32954 | G9: u
C10: L= | D10: =D9/(2*PI()*D8) -> 0.01061032954 | E10: Henry | F10: 10610329.54 | G10: n
B12: Slove reactance:
C13: F= | D13: 147000 | E13: Hertz
C14: L= | D14: 4.7e-05 | E14: Henry | I14: VS | J14: 0.27
C15: Xl= | D15: =2*PI()*D13*D14 -> 43.41052729 | E15: Ohms | I15: RS | J15: 50
G16: 43 | H16: RL | I16: IS | J16: =(J14-J17)/J15 -> 0.00276
B17: Slove frequency: | G17: 0.0032 | H17: RC | I17: VL | J17: 0.132
C18: L= | D18: 3.183098862e-05 | E18: Henry | G18: =40/(G16+G17) -> 0.9301633367 | H18: I | I18: RL | J18: =J17/J16 -> 47.82608696
C19: Xl= | D19: 100 | E19: Ohms | G19: VL | H19: =G16*G18 -> 39.99702348 | I19: IL | J19: =J17/J18 -> 0.00276
C20: F= | D20: =D19/(2*PI()*D18) -> 500000 | E20: Hertz | G20: VC | H20: =G17*G18 -> 0.002976522677
B22: References:
C23: https://pt.wikipedia.org/wiki/Reatância
C24: https://pt.wikipedia.org/wiki/Impedância_elétrica

Sheet AC Capacitive Reactance X(C)
A1: Index
B2: Formulas:
B8: Slove capacitance:
C9: F= | D9: 10 | E9: Hertz
C10: X(C)= | D10: 795 | E10: Ohms
C11: C= | D11: =1/(2*PI()*D9*D10) -> 2.00194897e-05 | E11: Farad | F11: =D11*1000 -> 0.0200194897 | G11: m
F12: =F11*1000 -> 20.0194897 | G12: u
B13: Slove reactance: | F13: 20019.4897 | G13: n
C14: F= | D14: 20000 | E14: Hertz | F14: 20019489.7 | G14: p
C15: C= | D15: 7.95e-10 | E15: Farad
C16: X(C)= | D16: =1/(2*PI()*D14*D15) -> 10009.74485 | E16: Ohms
B18: Slove frequency: | G18: =1/(1/30000+1/24) -> 23.98081535
C19: X(C)= | D19: 15000 | E19: Hertz | G19: =G18*3 -> 71.94244604
C20: C= | D20: 4.7e-10 | E20: Farad
C21: F= | D21: =1/(2*PI()*D19*D20) -> 22575.16923 | E21: Ohms | F21: =1/(1/10000+1/735) -> 684.6762925
B23: References:
C24: http://en.wikipedia.org/wiki/Capacitor
C25: http://www.allaboutcircuits.com/vol_2/chpt_4/2.html
C26: https://pt.wikipedia.org/wiki/Reatância
C27: https://pt.wikipedia.org/wiki/Impedância_elétrica

Sheet AC Voltage Phase Shift
A1: Index
B2: Formulas:
B8: Slove Phase:
C9: X | D9: 90000 | E9: Ohms
C10: R | D10: 2000 | E10: Ohms
C11: º | D11: =D9/D10 -> 45 | E11: Angle
B13: Note:
C14: Maximum Phase Shift By a Single CR or LR circuit is 90º degress
B15: References:
C16: https://www.oreilly.com/library/view/complete-electronics-self-teaching/9781118282328/c06_level1_6.xhtml

Sheet AC Impedance
A1: Index
B2: Formulas:
B7: Slove RLC impedance:
C8: R= | D8: 100000 | E8: Ohms
C9: X >= | D9: 1000000 | E9: Ohms
C10: X <= | D10: 1000 | E10: Ohms
C11: Z= | D11: =SQRT(D8^2+(D9-D10)^2) -> 1003992.53 | E11: Ohms
C12: cos Φ= | D12: =D8/D11 -> 0.09960233471 | E12: Cosine Phi
C13: Φº= | D13: =ACOS(D12)*180/PI() -> 84.28372839 | E13: Angle
B15: References:
C16: https://pt.wikipedia.org/wiki/Fasor
C17: https://pt.wikipedia.org/wiki/Imped%C3%A2ncia_el%C3%A9trica
C18: http://eletronicanoel.blogspot.pt/2012/06/curso-de-eletronica-circuitos-rc-parte.html
C19: http://www.electronics-tutorials.ws/accircuits/phasors.html

Sheet Back EMF of Inductor
A1: Index
B2: Formulas:
B10: Back EMF Generated:
C11: VCC | D11: 25 | E11: Volt
C12: L= | D12: 0.1 | E12: Henry
C13: di= | D13: 5 | E13: Amper
C14: dt= | D14: 0.025 | E14: Second
C15: v= | D15: =-D12*(D13/D14) -> -20 | E15: Volt
B18: Instantanious Energy Stored:
C19: L= | D19: 0.01 | E19: Henry
C20: i= | D20: 5 | E20: Amper
C21: f= | D21: 1 | E21: Hertz
C22: t= | D22: =1/D21 -> 1 | E22: Second
C23: E= | D23: =(1/2)*D19*D20^2 -> 0.125 | E23: Joule
C24: Q= | D24: =D20*D22 -> 5 | E24: Coulomb
C25: V= | D25: =D23/D24 -> 0.025 | E25: Volt
B27: References:
C28: https://www.electronics-tutorials.ws/inductor/inductor.html

Sheet Inductor Stored Energy
A1: Index
B2: Formulas:
B10: Inductor Stored Energy:
C11: L= | D11: 0.1 | E11: Henry
C12: I= | D12: 0.5 | E12: Amper
C13: t= | D13: =1/2 -> 0.5 | E13: Second
C14: E= | D14: =(1/2)*(D11*D12^2) -> 0.0125 | E14: Joule
C15: W= | D15: =D14*D13 -> 0.00625 | E15: Watt | G15: =D15/20 -> 0.0003125
B18: References:

Sheet Coupling Capacitor
A1: Index
B2: Formulas:
B9: Slove Capacitance:
C10: f= | D10: 100000000 | E10: Hertz | G10: m | H10: =D12*1000 -> 5.30516477e-08
C11: Zin= | D11: 600 | E11: Ohms (Impedance) | G11: u | H11: =H10*1000 -> 5.30516477e-05
C12: C= | D12: =1/(D10*2*PI()*D11/100*5) -> 0 | E12: Farad | G12: n | H12: 0.0530516477
G13: p | H13: 53.0516477
B14: References:
C15: https://www.reddit.com/r/electronics/comments/1z1gox/how_do_you_choose_coupling_capacitor_size/

Sheet RMS to DC Converter
A1: Index
B2: Formulas:
B9: Slove RMS | C9: DC | D9: 67.88225099 | E9: Volts
C10: AC | D10: =D9/SQRT(2) -> 48 | E10: RMS
B12: Slove DC | C12: AC | D12: 48 | E12: RMS
C13: DC | D13: =D12*SQRT(2) -> 67.88225099 | E13: Volts
B16: References: | H16: A | I16: 48 | J16: amplitude
C17: https://en.wikipedia.org/wiki/Root_mean_square | H17: f | I17: 60 | J17: frequency
H18: w | I18: =2*PI()*I17 -> 376.9911184 | J18: angular frequency
H19: t | I19: 240 | J19: time
H20: y | I20: =I16*SIN(RADIANS(I18+I19)) -> -46.76808878 | J20: displacement

Sheet Coil Design
A1: Index
B2: Formulas:
B13: Resolve coil indutance:
C14: n= | D14: 25 | E14: Number of turns
C15: d= | D15: 15 | E15: Inner coil diameter (mm)
C16: l= | D16: 30 | E16: Coil lenght (mm) | H16: Material | I16: Magnetic Permeability | J16: min | K16: max | L16: med
C17: u= | D17: =J19 -> 0.0063 | E17: Magnetic permeability (H/m) | H17: Air | I17: 4 x PI x 10-7 | J17: =4*PI()*10^-7 -> 1.256637061e-06 | K17: =J17 -> 1.256637061e-06 | L17: =(J17+K17)/2 -> 1.256637061e-06
C18: L= | D18: =(D17*(D14^2*PI()*(D15/1000/2)^2))/(D16/1000) -> 0.02319378951 | E18: Coil indutance (H) | H18: Iron (99.95% pure Fe annealed in H) | I18: 2.5×10−1 | J18: =2.5*10^-1 -> 0.25 | K18: 0.25 | L18: 0.25
C19: L= | D19: =D18*10^9 -> 23193789.51 | E19: Coil indutance (nH) | H19: Iron (99.8% pure) | I19: 6.3×10−3 | J19: =6.3*10^-3 -> 0.0063 | K19: 0.0063 | L19: 0.0063
H20: Ferrite (cobalt nickel zinc) | I20: 5.03×10−5 – 1.57×10−4 | J20: =5.03*10^-5 -> 5.03e-05 | K20: =1.57*10^-4 -> 0.000157 | L20: 0.00010365
H21: Ferritic stainless steel (annealed) | I21: 1.26×10−3 – 2.26×10−3 | J21: =1.26*10^-3 -> 0.00126 | K21: =2.26*10^-3 -> 0.00226 | L21: 0.00176
H22: Ferrite (nickel zinc) | I22: 1.26×10−5 – 2.89×10−3 | J22: =1.26*10^-5 -> 1.26e-05 | K22: =2.89*10^-3 -> 0.00289 | L22: 0.0014513
H23: Ferrite (manganese zinc) | I23: 4.4×10−4 – 2.51×10−2 | J23: =4.4*10^-4 -> 0.00044 | K23: =2.51*10^-2 -> 0.0251 | L23: 0.01277
B24: Relative permeability: | C24: u= | D24: =1.25663753*10^-6 -> 1.25663753e-06 | E24: Magnetic permeability (H/m) | H24: Ferrite (magnesium manganese zinc | I24: 4.4×10−4 – 6.28×10−4 | J24: 0.00044 | K24: =6.28*10^-4 -> 0.000628 | L24: 0.000534
C25: uo= | D25: =4*PI()*10^-7 -> 1.256637061e-06 | E25: Free Space Permeability
C26: ur= | D26: =D24/D25 -> 1.000000373 | E26: Relative Permeability
B31: Absolute permeability: | C31: ur | D31: 2000 | E31: Relative permeability
C32: uo | D32: =4*PI()*10^-7 -> 1.256637061e-06 | E32: Free Space Permeabiliy
C33: u | D33: =D32*D31 -> 0.002513274123 | E33: Magnetic permeability (H/m)
B36: References:
C37: https://www.newtoncbraga.com.br/index.php/eletronica/52-artigos-diversos/4151-art572
C38: https://en.wikipedia.org/wiki/Permeability_(electromagnetism)

Sheet Ideal Transformer
A1: Index
B4: Slove Ideal Transformer: | C4: Frequency | D4: 50 | E4: Hz
C5: Primary RMS | D5: 230 | E5: Volt RMS
C6: Secondary RMS | D6: 12 | E6: Volt RMS
C7: Scondary Current | D7: 1 | E7: Amper
C8: Tansformer Ratio | D8: =D5/D6 -> 19.16666667 | E8: Ratio
C9: Primary Current | D9: =D7/D8 -> 0.05217391304 | E9: Amper
C10: Primary Inductance | D10: =(D5/D9)/(2*PI()*D4) -> 14.03216082 | E10: Henry
C11: Secondary Inductance | D11: =(D6/D7)/(2*PI()*D4) -> 0.03819718634 | E11: Henry
C12: Primary Vpp | D12: =D5*SQRT(2) -> 325.2691193 | E12: Volt Peak to Peak
C13: Secondary Vpp | D13: 16.97056275 | E13: Volt Peak to Peak
B18: References:
C19: https://www.jcalc.net/transformer-calculator
C20: https://www.electronics-tutorials.ws/transformer/transformer-basics.html

Sheet Mutual inductance
A1: Index
B3: Formulas:
B11: Calculate Transformer:
C12: Primary= | D12: 230 | E12: Volts
C13: Secondary= | D13: 48 | E13: Volts
C14: Frequency= | D14: 60 | E14: Hertz
C15: Primary= | D15: 0.52 | E15: Ampers
C16: Coefficient= | D16: 1 | E16: Coupling
C17: Primary= | D17: =D12/D15 -> 442.3076923 | E17: Ohms
C18: Primary= | D18: =D17/(2*PI()*D14) -> 1.173257593 | E18: Henry
C19: Transformer= | D19: =D16*(D12/D13) -> 4.791666667 | E19: Ratio
C20: Secondary= | D20: =D18/(D19^2) -> 0.05109991484 | E20: Henry
B24: Calculate Primary Current:
C25: Primary= | D25: 230 | E25: Volts
C26: Secondary= | D26: 48 | E26: Volts
C27: Secondary= | D27: 3 | E27: Amperes
C28: Power= | D28: =D27*D26 -> 144 | E28: Watts
C29: Primary= | D29: =D28/D25 -> 0.6260869565 | E29: Amperes
C32: N1= | D32: 100 | E32: Turns
C33: Primary= | D33: 0.63 | E33: Amps
C34: Secondary= | D34: 3 | E34: Amps
C35: Transformer= | D35: =D34/D33 -> 4.761904762 | E35: Ratio
C36: N2= | D36: =D32/D35 -> 21 | E36: Turns
B41: References:
C42: http://electronics.stackexchange.com/questions/24864/transformer-design-how-do-i-set-an-n1-n2-ratio-by-means-of-selecting-winding-in
C43: http://en.wikipedia.org/wiki/Inductance
C44: https://www.electronics-tutorials.ws/inductor/mutual-inductance.html
C45: http://www.tpub.com/neets/book2/5h.htm

Sheet Sinusoidal Waveform
A1: Index
B2: Formulas:
B7: Slove Amplitude
C8: A= | D8: 12 | E8: Maximum amplitude
C9: F= | D9: 33 | E9: Frequency (Hertz)
C10: t= | D10: 0.123 | E10: Time (Seconds)
C11: Φ= | D11: =RADIANS(45) -> 0.7853981634 | E11: Phase (radians)
C12: ω= | D12: =2*PI()*D9 -> 207.3451151 | E12: Angular frequency (rads/s)
C13: At= | D13: =D8*SIN(D12*D10+D11) -> 10.98289407 | E13: Amplitude in time
C14: It= | D14: =D13/'AC Impedance'!D11 -> 1.093921891e-05
B20: References:
C21: http://www.electronics-tutorials.ws/accircuits/sinusoidal-waveform.html
J22: GRAUS | K22: 45
J23: RADIANOS | K23: =RADIANS(K22) -> 0.7853981634
J24: GRAUS | K24: =K23*180/PI() -> 45
J26: COS | K26: =COS(K23) -> 0.7071067812
J27: ACOS | K27: =ACOS(K26) -> 0.7853981634

Sheet Passive RC Filter
A1: Index
B2: Formulas:
B8: Slove capacitance:
C9: F= | D9: 20000 | E9: Hertz
C10: R= | D10: 1000 | E10: Ohms | F10: =D14*1000 -> 7.957747155e-06 | G10: m
C11: Db | D11: -3 | E11: Decibel | F11: =F10*1000 -> 0.007957747155 | G11: u
C12: fc (point)= | D12: =10^(D11/20)*100 -> 70.79457844 | E12: Percent | F12: 7.957747155 | G12: n
C13: fc (point)= | D13: =10^(D11/10)*D9 -> 10023.74467 | E13: Hertz
C14: C= | D14: =1/(2*PI()*D9*D10) -> 7.957747155e-09 | E14: Farad | F14: =F12*1000 -> 7957.747155 | G14: p
B17: Slove resistence:
C18: F= | D18: 20000 | E18: Hertz
C19: C= | D19: 7.957747155e-09 | E19: Farad
C20: Db | D20: -3 | E20: Decibel
C21: fc (point)= | D21: =10^(D20/20)*100 -> 70.79457844 | E21: Percent
C22: fc (point)= | D22: =10^(D20/10)*D18 -> 10023.74467 | E22: Hertz
C23: R= | D23: =1/(2*PI()*D18*D19) -> 1000 | E23: Ohms
B26: Slove frequencie:
C27: R= | D27: 1000 | E27: Ohms
C28: C= | D28: 7.957747155e-09 | E28: Farad
C29: F= | D29: =1/(2*PI()*D27*D28) -> 20000 | E29: Hertz
C30: fc (point)= | D30: =D29*10^(-3/20) -> 14158.91569 | E30: Hertz
H32: =1/(1/400+1/100) -> 80
B33: References:
C34: https://www.electronics-tutorials.ws/filter/decibels.html
C35: http://www.electronics-tutorials.ws/filter/filter_4.html
C36: http://www.learningaboutelectronics.com/Articles/Low-pass-filter-calculator.php#answer1
C37: https://excelribbon.tips.net/T012486_Deriving_Antilogs.html

Sheet Passive LC Filter
A1: Index
B2: Formulas:
G4: LOW PASS
B8: Slove inductance:
C9: f= | D9: 25000000 | E9: Hertz
C10: C= | D10: 6e-12 | E10: Farad
C11: fc -6Db= | D11: =D9*10^(-6/10) -> 6279716.079 | E11: Hertz
C12: L= | D12: =(1/(D9*2*PI()*SQRT(D10)))^2 -> 6.754745576e-06 | E12: Henry | F12: =D12*1000*1000 -> 6.754745576
G14: HIGH PASS
B15: Slove capacitance:
C16: f= | D16: 25000000 | E16: Hertz
C17: L= | D17: 6.754745576e-06 | E17: Henry
C18: fc -6Db= | D18: =D16*10^(-6/10) -> 6279716.079 | E18: Hertz
C19: C= | D19: =(1/(D16*2*PI()*SQRT(D17)))^2 -> 0 | E19: Farad
B22: Slove frequencie:
C23: L= | D23: 6.754745576e-06 | E23: Henry
C24: C= | D24: 6e-12 | E24: Farad
C25: fc -6DB= | D25: =1/(2*PI()*SQRT(D23*D24)) -> 25000000 | E25: Hertz
C26: f= | D26: =D25/10^(-6/10) -> 99526792.64 | E26: Hertz
B28: References:
C29: http://www.electronics-tutorials.ws/filter/filter_4.html
C30: https://electronicbase.net/lc-filter-calculator/

Sheet Varicap Junction Capacitance
A1: Index
B2: Formula:
B10: Slove capacitance:
C11: CJO= | D11: 692 | F11: zero-bias junction capacitance
C12: VR= | D12: 12 | F12: reverse bias voltage
C13: VJ= | D13: 2.5 | F13: junction potential
C14: m= | D14: 1 | F14: grading coefficient
C15: CJ= | D15: =D11/((1+D12/D13)^D14) -> 119.3103448 | F15: junction capacitance
B17: References:
C18: http://www.engr.uky.edu/~radun/EE603/LectureNotes/DiodeChar/NonIdealDiode
C19: http://electronics-diy.com/varicaps.php
C20: http://en.wikipedia.org/wiki/Varicap
B22: Notes:
C23: Normal diodes can be used as varactor diodes

Sheet RC Charge Time
A1: Index
B2: Formulas:
B9: Slove resistance: | C9: t5= | D9: 0.008 | E9: Time constant at ~100% of charge (seconds)
C10: C= | D10: 1e-06 | E10: Capacitance (farad)
C11: t= | D11: =D12*D10 -> 0.0016 | E11: Time constant at ~63% of charge (seconds)
C12: R= | D12: =D9/(D10*5) -> 1600 | E12: Resistance (ohms)
B14: Slove voltage:
C15: VCC= | D15: 12 | E15: Source voltage (volts)
C16: t= | D16: 0.0166 | E16: Time (seconds)
C17: R= | D17: 16 | E17: Resistance (ohms)
C18: C= | D18: 0.0001 | E18: Capacitance (farads)
C19: T= | D19: =D17*D18 -> 0.0016 | E19: Time Constant (táu)
C20: VC(t)= | D20: =12*(1-2.718^(-D16/D19)) -> 11.99962516 | E20: Charge voltage (voltage on capacitor)
C21: VR(t)= | D21: =D15*2.718^(-D16/D19) -> 0.0003748376249 | E21: Dischage voltage (voltage on resistor)
B24: Analyze charge /discharge: | C24: VCC | D24: 10 | E24: Sorce voltage (volts)
C25: R | D25: 2000 | E25: Resistance (ohms)
C26: C | D26: 0.001 | E26: Cpacitance (farad)
C27: t | D27: =D25*D26 -> 2 | E27: Time constant at ~63% of charge (seconds)
C28: t5 | D28: =D27*5 -> 10 | E28: Time constant at ~100% of charge (seconds)
C30: t5 % | D30: time | E30: logarithm | F30: C | G30: R
C31: 0 | D31: =$D$28/100*C31 -> 0 | E31: =EXP(-D31/$D$27) -> 1 | F31: =$D$24*(1-E31) -> 0 | G31: =$D$24*(E31) -> 10
C32: 5 | D32: 0.5 | E32: 0.7788007831 | F32: 2.211992169 | G32: 7.788007831
C33: 10 | D33: 1 | E33: 0.6065306597 | F33: 3.934693403 | G33: 6.065306597
C34: 15 | D34: 1.5 | E34: 0.4723665527 | F34: 5.276334473 | G34: 4.723665527
C35: 20 | D35: 2 | E35: 0.3678794412 | F35: 6.321205588 | G35: 3.678794412
C36: 25 | D36: 2.5 | E36: 0.2865047969 | F36: 7.134952031 | G36: 2.865047969
C37: 30 | D37: 3 | E37: 0.2231301601 | F37: 7.768698399 | G37: 2.231301601
C38: 35 | D38: 3.5 | E38: 0.1737739435 | F38: 8.262260565 | G38: 1.737739435
C39: 40 | D39: 4 | E39: 0.1353352832 | F39: 8.646647168 | G39: 1.353352832
C40: 45 | D40: 4.5 | E40: 0.1053992246 | F40: 8.946007754 | G40: 1.053992246
C41: 50 | D41: 5 | E41: 0.08208499862 | F41: 9.179150014 | G41: 0.8208499862
C42: 55 | D42: 5.5 | E42: 0.06392786121 | F42: 9.360721388 | G42: 0.6392786121
C43: 60 | D43: 6 | E43: 0.04978706837 | F43: 9.502129316 | G43: 0.4978706837
C44: 65 | D44: 6.5 | E44: 0.03877420783 | F44: 9.612257922 | G44: 0.3877420783
C45: 70 | D45: 7 | E45: 0.03019738342 | F45: 9.698026166 | G45: 0.3019738342
C46: 75 | D46: 7.5 | E46: 0.02351774586 | F46: 9.764822541 | G46: 0.2351774586
C47: 80 | D47: 8 | E47: 0.01831563889 | F47: 9.816843611 | G47: 0.1831563889
C48: 85 | D48: 8.5 | E48: 0.01426423391 | F48: 9.857357661 | G48: 0.1426423391
C49: 90 | D49: 9 | E49: 0.01110899654 | F49: 9.888910035 | G49: 0.1110899654
C50: 95 | D50: 9.5 | E50: 0.008651695203 | F50: 9.913483048 | G50: 0.08651695203
C51: 100 | D51: 10 | E51: 0.006737946999 | F51: 9.93262053 | G51: 0.06737946999
B55: References:
C56: http://en.wikipedia.org/wiki/RC_time_constant
C57: http://www.eletronica24h.com.br/Curso%20CA/aparte1/aulas/aula003.html
C58: http://www.electronics-tutorials.ws/rc/rc_1.html
C59: http://macao.communications.museum/por/Exhibition/secondfloor/moreinfo/2_3_5_ChargingCapacitor.html

Sheet RL Charge Time
A1: Index
B2: Formulas:
B9: Slove charge current: | C9: V= | D9: 6 | E9: Volts
C10: R= | D10: 10 | E10: Ohms
C11: L= | D11: 10 | E11: Henry
C12: t= | D12: =0.001*502 -> 0.502 | E12: Time (seconds)
C13: T= | D13: =D11/D10 -> 1 | E13: Time constant (táu)
C14: i= | D14: =(D9/D10)*(1-2.718^(D12/D13)) -> -0.3911616169 | E14: Ampers
B17: Slove Sotred Power: | C17: A= | D17: 0.5 | E17: Ampers
C18: L= | D18: 0.5 | E18: Henry
C19: t= | D19: 0.008 | E19: Time (seconds)
C20: J= | D20: =D18*D17^2/2 -> 0.0625 | E20: Joules
C21: P= | D21: =D20/D19 -> 7.8125 | E21: Watts
B24: References:
C26: http://macao.communications.museum/por/Exhibition/secondfloor/moreinfo/2_3_6_ResistanceInductance.html

Sheet LC Resonance Frequency
A1: Index
B2: Formulas: | F2: =1/(1/47+1/4.7) -> 4.272727273
B8: Slove frequency: | H8: Nano Henry | I8: Capacitor | J8: Resonant Freq.
C9: L= | D9: 0.1 | E9: Henry | H9: 85.78 | I9: 4,03n | J9: 8,56MHz
C10: C= | D10: 0.1 | E10: Farad | H10: 89.91 | I10: 3,89n | J10: 8,51MHz
C11: F= | D11: =1/(2*PI()*SQRT(D9*D10)) -> 1.591549431 | E11: Hertz | H11: 79.04 | I11: 960p | J11: 18,27MHz
B13: Slove inductance:
C14: C= | D14: 0.1 | E14: Farad
C15: F= | D15: 1.591549431 | E15: Hertz
C16: L= | D16: =(1/(D15*2*PI()*SQRT(D14)))^2 -> 0.1 | E16: Henry | F16: =D16*1000*1000 -> 100000
B18: Slove capacitance:
C19: L= | D19: 0.1 | E19: Henry
C20: F= | D20: 1.591549431 | E20: Hertz
C21: C= | D21: =(1/(D20*2*PI()*SQRT(D19)))^2 -> 0.1 | E21: Farad | F21: =D21*1000*1000*1000*1000 -> 100000000000
B23: References:
C24: http://www.ekswai.com/en_lc.htm
C25: http://en.wikipedia.org/wiki/LC_circuit

Sheet AVR PWM
A1: Index
B4: Period to duty cycle and Hertz
C5: TIME ON= | D5: 1.041666667e-05 | E5: seconds
C6: TIME OFF= | D6: 1.041666667e-05 | E6: seconds
C7: PERIOD= | D7: =D6+D5 -> 2.083333333e-05 | E7: seconds
C8: DUTY CYCLE= | D8: =D5/D7*100 -> 50 | E8: %
C9: FREQ= | D9: =1/D7 -> 48000 | E9: Hertz
B12: Duty cycle to OCR | C12: DUTY CYCLE= | D12: 25 | E12: %
C13: TOP= | D13: 256
C14: OCR= | D14: =D13/100*D12 -> 64
B17: Clear Timer on Compare Match (CTC) Mode | C17: CLOCK= | D17: 8000000 | E17: Hertz
C18: PRESCALER= | D18: 8 | E18: 1,8,64,256,1024
C19: OCRn= | D19: 3
C20: FREQ= | D20: =D17/(2*D18*(1+D19)) -> 125000
B23: Fast PWM Mode | C23: CLOCK= | D23: 8000000 | E23: Hertz
C24: PRESCALER= | D24: 1
C25: TOP= | D25: 256
C26: FREQ= | D26: =D23/(D24*D25) -> 31250 | E26: Hertz
B29: Phase Correct PWM Mode | C29: CLOCK= | D29: 8000000 | E29: Hertz
C30: PRESCALER= | D30: 1024 | E30: 1,8,64,256,1024
C31: FREQ= | D31: =D29/(D30*510) -> 15.31862745 | E31: Hertz
B39: References:
C41: https://sites.google.com/site/qeewiki/books/avr-guide/pwm-on-the-atmega328
C42: http://maxembedded.com/2012/01/avr-timers-pwm-mode-part-ii/
C43: http://www.avrbeginners.net/architecture/timers/timers.html

Sheet Maximum Power Transfer
A1: Index
B3: Formulas:
B11: Slove Maximum Power Transfer:
C12: Vs= | D12: 12 | E12: Volts
C13: Rl= | D13: 4 | E13: Ohms
C14: Rs= | D14: 4 | E14: Ohms
C15: I= | D15: =D12/(D13+D14) -> 1.5 | E15: Ampers
C16: P= | D16: =D15^2*D13 -> 9 | E16: Watts
B18: References:
C19: https://en.wikipedia.org/wiki/Maximum_power_transfer_theorem
C20: https://www.electronics-tutorials.ws/dccircuits/dcp_9.html
C21: http://www.etelg.com.br/downloads/eletronica/cursos/Aulas/Aula014.html

Sheet Kirchhoff MATRIX
A1: Index
B2: Formulas:
B8: Slove frequency: | D8: a | E8: b | F8: c | G8: d | H8: e
C9: A= | D9: 4 | E9: -2 | F9: 0 | G9: -2 | J9: X= | K9: 5
D10: -2 | E10: 4 | F10: -2 | G10: 0 | K10: 0
D11: 0 | E11: -2 | F11: 6 | G11: -2 | K11: 0
D12: -2 | E12: 0 | F12: -2 | G12: 6 | K12: 0
K13: 0
D15: USE CRL+SHIFT+ENTER
C16: B= | D16: =MMULT(MINVERSE(D9:G12),K9:K12) -> 2.954545455 | E16: ia
D17: 2.045454545 | E17: ib
D18: 1.136363636 | E18: ic
D19: 1.363636364 | E19: id
E20: ie
B23: References:
C24: http://www.excel-easy.com/examples/system-of-linear-equations.html
C25: https://def.fe.up.pt/eletricidade/circuitos_cc.html

Sheet Thévenin`s theorem
A1: Index
B13: Formulas:
B19: Slove frequency:
C20: VCC | D20: 15 | E20: Volts
C21: R4 | D21: 2000 | E21: Ohms
C22: R3+R2 | D22: 2000 | E22: Ohms
C23: R1 | D23: 1000 | E23: Ohms
C24: Rth | D24: =1/(1/D21+1/D22)+D23 -> 2000 | E24: Ohms
C25: Vth | D25: =D22/(D22+D21)*D20 -> 7.5 | E25: Volts
C26: Iab= | D26: =D25/D24 -> 0.00375 | E26: Ampers
B29: References:
C30: https://en.wikipedia.org/wiki/Thévenin's_theorem
C31: https://pt.wikipedia.org/wiki/Divisor_de_tensão
C32: http://www.corradi.junior.nom.br/teoremanortonthevenin.pdf
C33: https://itligado.files.wordpress.com/2013/04/3-thevenin-norton-exercicios-1.pdf

Sheet Rect. Conductor Magnetic Field
A1: Index
B3: Formulas:
B13: Slove magnetic field:
C14: r | D14: 0.005 | E14: Meters (Distance from conductor)
C15: I | D15: 12.5 | E15: Ampers
C16: B | D16: =(4*PI()*10^-7*D15)/(2*PI()*D14) -> 0.0005 | E16: Tesela (Magnetic field intensity)
B18: Slove current:
C19: B | D19: 5e-05 | E19: Tesela (Magnetic field intensity)
C20: r | D20: 0.05 | E20: Meters (Distance from conductor)
C21: I | D21: =D19*((2*PI()*D20)/(4*PI()*10^-7)) -> 12.5 | E21: Ampers
B24: References:
C25: https://pt.khanacademy.org/science/physics/magnetic-forces-and-magnetic-fields/magnetic-field-current-carrying-wire/a/what-are-magnetic-fields
C26: http://fisicaevestibular.com.br/novo/eletricidade/eletromagnetismo/campo-magnetico-originado-por-um-condutor-retilineo-extenso-percorrido-por-corrente-eletrica/
B28: Notes: | C28: 1 Gauss == 10^-4 Tesla in CGS units

Sheet AWG
A1: Index
C4: AWG gauge | D4: Conductor Diameter in mm | E4: Conductor cross section in mm2 | F4: Ohms per Km | G4: Maximum amps for chassis wiring | H4: Maximum amps for power transmission | I4: Maximum frequency for 100% skin depth for solid conductor copper in Hz | J4: Breaking force Soft Annealed Cu 37000 PSI in Kg
C5: 4/0 | D5: 11.684 | E5: =PI()*(D5/2)^2 -> 107.2193026 | F5: 0.16072 | G5: 380 | H5: 302 | I5: 125 | J5: 2775.985304
C6: 3/0 | D6: 10.40384 | E6: 85.01140826 | F6: 0.202704 | G6: 328 | H6: 239 | I6: 160 | J6: 2204.458918
C7: 2/0 | D7: 9.26592 | E7: 67.43214488 | F7: 0.255512 | G7: 283 | H7: 190 | I7: 200 | J7: 1750.866548
C8: 1/0 | D8: 8.25246 | E8: 53.48804656 | F8: 0.322424 | G8: 245 | H8: 150 | I8: 250 | J8: 1387.992652
C9: 1 | D9: 7.34822 | E9: 42.40862404 | F9: 0.406392 | G9: 211 | H9: 119 | I9: 325 | J9: 1102.229459
C10: 2 | D10: 6.54304 | E10: 33.62397329 | F10: 0.512664 | G10: 181 | H10: 94 | I10: 410 | J10: 875.4332741
C11: 3 | D11: 5.82676 | E11: 26.66515679 | F11: 0.64616 | G11: 158 | H11: 75 | I11: 500 | J11: 693.9963261
C12: 4 | D12: 5.18922 | E12: 21.14920505 | F12: 0.81508 | G12: 135 | H12: 60 | I12: 650 | J12: 548.8467677
C13: 5 | D13: 4.62026 | E13: 16.76573945 | F13: 1.027624 | G13: 118 | H13: 47 | I13: 810 | J13: 435.4486752
C14: 6 | D14: 4.1148 | E14: 13.29803108 | F14: 1.295928 | G14: 101 | H14: 37 | I14: 1100 | J14: 344.7302012
C15: 7 | D15: 3.66522 | E15: 10.55091142 | F15: 1.634096 | G15: 89 | H15: 30 | I15: 1300 | J15: 274.4233838
C16: 8 | D16: 3.2639 | E16: 8.366880572 | F16: 2.060496 | G16: 73 | H16: 24 | I16: 1650 | J16: 217.7243376
C17: 9 | D17: 2.90576 | E17: 6.631463194 | F17: 2.598088 | G17: 64 | H17: 19 | I17: 2050 | J17: 172.3651006
C18: 10 | D18: 2.58826 | E18: 5.261452847 | F18: 3.276392 | G18: 55 | H18: 15 | I18: 2600 | J18: 142.4280042
C19: 11 | D19: 2.30378 | E19: 4.16842401 | F19: 4.1328 | G19: 47 | H19: 12 | I19: 3200 | J19: 112.9445001
C20: 12 | D20: 2.05232 | E20: 3.308110716 | F20: 5.20864 | G20: 41 | H20: 9.3 | I20: 4150 | J20: 89.35769689
C21: 13 | D21: 1.8288 | E21: 2.626771572 | F21: 6.56984 | G21: 35 | H21: 7.4 | I21: 5300 | J21: 68.0388555
C22: 14 | D22: 1.62814 | E22: 2.081964757 | F22: 8.282 | G22: 32 | H22: 5.9 | I22: 6700 | J22: 53.97749203 | L22: =F41 -> 555.61 | M22: ohm/km
C23: 15 | D23: 1.45034 | E23: 1.652074132 | F23: 10.44352 | G23: 28 | H23: 4.7 | I23: 8250 | J23: 42.63768278 | L23: 5.1 | M23: wire ohm
C24: 16 | D24: 1.29032 | E24: 1.307629589 | F24: 13.17248 | G24: 22 | H24: 3.7 | I24: 11000 | J24: 34.01942775 | L24: 1.8 | M24: coil length cm
C25: 17 | D25: 1.15062 | E25: 1.039809351 | F25: 16.60992 | G25: 19 | H25: 2.9 | I25: 13000 | J25: 26.76194983 | L25: =L22/1000/100 -> 0.0055561 | M25: ohm/cm
C26: 18 | D26: 1.02362 | E26: 0.8229385497 | F26: 20.9428 | G26: 16 | H26: 2.3 | I26: 17000 | J26: 21.31884139 | L26: =L23/L25 -> 917.9100448 | M26: wire length cm
C27: 19 | D27: 0.91186 | E27: 0.6530496661 | F27: 26.40728 | G27: 14 | H27: 1.8 | I27: 21000 | J27: 16.78291769 | L27: =L26/L24 -> 509.9500249 | M27: number of turns
C28: 20 | D28: 0.8128 | E28: 0.5188684586 | F28: 33.292 | G28: 11 | H28: 1.5 | I28: 27000 | J28: 13.15417873
C29: 21 | D29: 0.7239 | E29: 0.4115731499 | F29: 41.984 | G29: 9 | H29: 1.2 | I29: 33000 | J29: 10.43262451
C30: 22 | D30: 0.64516 | E30: 0.3269073972 | F30: 52.9392 | G30: 7 | H30: 0.92 | I30: 42000 | J30: 8.16466266
C31: 23 | D31: 0.57404 | E31: 0.258805912 | F31: 66.7808 | G31: 4.7 | H31: 0.729 | I31: 53000 | J31: 6.577089365
C32: 24 | D32: 0.51054 | E32: 0.2047148886 | F32: 84.1976 | G32: 3.5 | H32: 0.577 | I32: 68000 | J32: 5.216312255
C33: 25 | D33: 0.45466 | E33: 0.1623541434 | F33: 106.1736 | G33: 2.7 | H33: 0.457 | I33: 85000 | J33: 4.08233133
C34: 26 | D34: 0.40386 | E34: 0.1281007178 | F34: 133.8568 | G34: 2.2 | H34: 0.361 | I34: 107000 | J34: 3.265865064
C35: 27 | D35: 0.36068 | E35: 0.1021724961 | F35: 168.8216 | G35: 1.7 | H35: 0.288 | I35: 130000 | J35: 2.494758035
C36: 28 | D36: 0.32004 | E36: 0.08044487938 | F36: 212.872 | G36: 1.4 | H36: 0.226 | I36: 170000 | J36: 2.041165665
C37: 29 | D37: 0.28702 | E37: 0.06470147801 | F37: 268.4024 | G37: 1.2 | H37: 0.182 | I37: 210000 | J37: 1.632932532
C38: 30 | D38: 0.254 | E38: 0.05067074791 | F38: 338.496 | G38: 0.86 | H38: 0.142 | I38: 270000 | J38: 1.247379017
C39: 31 | D39: 0.22606 | E39: 0.04013629942 | F39: 426.728 | G39: 0.7 | H39: 0.113 | I39: 340000 | J39: 1.020582832
C40: 32 | D40: 0.2032 | E40: 0.03242927866 | F40: 538.248 | G40: 0.53 | H40: 0.091 | I40: 430000 | J40: 0.816466266
C41: Metric 2.0 | D41: 0.2 | E41: 0.03141592654 | F41: 555.61 | G41: 0.51 | H41: 0.088 | I41: 440000 | J41: 0
C42: 33 | D42: 0.18034 | E42: 0.02554312402 | F42: 678.632 | G42: 0.43 | H42: 0.072 | I42: 540000 | J42: 0.589670081
C43: Metric 1.8 | D43: 0.18 | E43: 0.02544690049 | F43: 680.55 | G43: 0.43 | H43: 0.072 | I43: 540000 | J43: 0
C44: 34 | D44: 0.16002 | E44: 0.02011121985 | F44: 855.752 | G44: 0.33 | H44: 0.056 | I44: 690000 | J44: 0.498951607
C45: Metric 1.6 | D45: 0.16002 | E45: 0.02011121985 | F45: 855.752 | G45: 0.33 | H45: 0.056 | I45: 690000 | J45: 0
C46: 35 | D46: 0.14224 | E46: 0.01589034654 | F46: 1079.12 | G46: 0.27 | H46: 0.044 | I46: 870000 | J46: 0.4173049804
C47: Metric 1.4 | D47: 0.14 | E47: 0.015393804 | F47: 1114 | G47: 0.26 | H47: 0.043 | I47: 900000 | J47: 0
C48: 36 | D48: 0.127 | E48: 0.01266768698 | F48: 1360 | G48: 0.21 | H48: 0.035 | I48: 1100000 | J48: 0.3265865064
C49: Metric 1.25 | D49: 0.125 | E49: 0.0122718463 | F49: 1404 | G49: 0.2 | H49: 0.034 | I49: 1150000 | J49: 0
C50: 37 | D50: 0.1143 | E50: 0.01026082645 | F50: 1715 | G50: 0.17 | H50: 0.0289 | I50: 1350000 | J50: 0.2585476509
C51: Metric 1.12 | D51: 0.112 | E51: 0.009852034562 | F51: 1750 | G51: 0.163 | H51: 0.0277 | I51: 1400000 | J51: 0
C52: 38 | D52: 0.1016 | E52: 0.008107319666 | F52: 2163 | G52: 0.13 | H52: 0.0228 | I52: 1750000 | J52: 0.2041165665
C53: Metric 1 | D53: 0.1 | E53: 0.007853981634 | F53: 2198 | G53: 0.126 | H53: 0.0225 | I53: 1750000 | J53: 0
C54: 39 | D54: 0.0889 | E54: 0.006207166619 | F54: 2728 | G54: 0.11 | H54: 0.0175 | I54: 2250000 | J54: 0.1632932532
C55: 40 | D55: 0.07874 | E55: 0.004869458874 | F55: 3440 | G55: 0.09 | H55: 0.0137 | I55: 2900000 | J55: 0.1315417873
C58: References:
D59: https://www.powerstream.com/Wire_Size.htm
D60: https://en.wikipedia.org/wiki/Skin_effect
D61: https://en.wikipedia.org/wiki/American_wire_gauge#Tables_of_AWG_wire_sizes

Sheet Colpitts Oscilator
A1: Index
E22: http://www.newtoncbraga.com.br/index.php/matematica-para-eletronica/439-oscilador-de-colpitts-calculo-m008.html

Sheet NPN Common Emitter
A1: Index
C4: VCC | D4: 15 | E4: Volts
C5: VCE | D5: 10 | E5: Volts
C6: VC | D6: 4 | E6: Volts
C7: Hfe | D7: 296 | E7: Beta
C8: IC | D8: 0.01 | E8: Ampers
C9: VE | D9: =D4-D5-D6 -> 1 | E9: Volts
C10: IB | D10: =D8/D7 -> 3.378378378e-05 | E10: Ampers
C11: IRB1 | D11: =D10*10 -> 0.0003378378378 | E11: Ampers
C12: IRB2 | D12: =D11-D10 -> 0.0003040540541 | E12: Ampers
C13: RB1 | D13: =(D4-D9+0.8)/D11 -> 43808 | E13: Ohms
C14: RB2 | D14: =(D9+0.8)/D12 -> 5920 | E14: Ohms
C15: RC | D15: =D6/D8 -> 400 | E15: Ohms
C16: RE | D16: =D9/D8 -> 100 | E16: Ohms
C17: BC | D17: =D16/10 -> 10 | E17: Ohms
C18: Re | D18: =0.025/D8*D7 -> 740 | E18: Ohms
C19: Zin | D19: =1/(1/D13+1/D14+1/((0.025/D8)*D7)) -> 648.0473373 | E19: Ohms
C20: Zout | D20: =1/(1/D15+1/D16+1/D17) -> 8.888888889 | E20: Ohms
C22: VT | D22: =(D8/0.025) -> 0.4 | E22: gm
C23: A | D23: =D22*D7 -> 118.4

Sheet NPN Common Collector
A1: Index
C4: VCC | D4: 15 | E4: Volts
C5: VCE | D5: 10 | E5: Volts
C6: VC | D6: 4
C7: Hfe | D7: 296 | E7: Beta
C8: IC | D8: 0.01 | E8: Ampers
C9: VE | D9: =D4-D5-D6 -> 1 | E9: Volts
C10: IB | D10: =D8/D7 -> 3.378378378e-05 | E10: Ampers
C11: VB | D11: =D9+0.8 -> 1.8
C12: RB | D12: =(D4-D11)/D10 -> 390720 | E12: Ohms
C13: RC | D13: =D6/D8 -> 400 | E13: Ohms
C14: RE | D14: =D9/D8 -> 100 | E14: Ohms
C15: BC | D15: =D14/10 -> 10 | E15: Ohms
C16: Zin | D16: =1/(1/D12+1/((0.025/D8)*D7)) -> 738.6011342 | E16: Ohms
C17: zout | D17: =1/(1/D13+1/D14+1/D15) -> 8.888888889 | E17: Ohms

Sheet NE555 Astable
A1: Index
B2: Formulas:
B9: Slove Frequency | C9: R1 | D9: 140000 | E9: Ohms
C10: R2 | D10: 75000 | E10: Ohms
C11: C | D11: 8.2e-10 | E11: Farad
C12: Frequency | D12: =1.44/((D9+2*D10)*D11) -> 6055.508831 | E12: Hz
C13: T1 (High Time) | D13: =0.694*(D9+D10)*D11 -> 0.0001223522 | E13: Seconds | F13: =D13*1000*1000 -> 122.3522
C14: T0 (Low Time) | D14: =0.694*D10*D11 -> 4.2681e-05 | E14: Seconds
C15: T (Total Time) | D15: =D14+D13 -> 0.0001650332 | E15: Seconds
C16: Mark Space | D16: =D13/D14 -> 2.866666667 | E16: Ratio
C17: Duty Cycle | D17: =D13/D15*100 -> 74.13793103 | E17: Percentage
B20: Slove R2:
C21: Frequency | D21: 140000 | E21: Hz
C22: R1 | D22: 500 | E22: Ohms
C23: C | D23: 1e-10 | E23: Farad
C24: R2 | D24: =(1.44-D21*D22*D23)/(D21*D23)/2 -> 51178.57143 | E24: Ohms
C25: T1 (High Time) | D25: =0.694*(D22+D24)*D23 -> 3.586492857e-06 | E25: Seconds
C26: T0 (Low Time) | D26: =0.694*D24*D23 -> 3.551792857e-06 | E26: Seconds
C27: T (Total Time) | D27: =D26+D25 -> 7.138285714e-06 | E27: Seconds
C28: Mark Space | D28: =D25/D26 -> 1.009769714 | E28: Ratio
C29: Duty Cycle | D29: =D25/D27*100 -> 50.24305556 | E29: Percentage
B32: References:
C33: https://www.allaboutcircuits.com/tools/555-timer-astable-circuit/

Sheet Thermal Resistance
A1: Index
B3: Formulas:
B15: Slove power dissipation: | C15: Tj | D15: 125 | E15: ºC
C16: Θja | D16: 30 | E16: ºC/W
C17: Ta | D17: 35 | E17: ºC
C18: Pd | D18: =(D15-D17)/D16 -> 3 | E18: W | H18: TO-220, TO-263 - junction to case thermal resistance 0,89 ºC/W
B21: Slove Junction temperature | C21: Pd | D21: 6 | E21: W
C22: Θjc | D22: 0.89 | E22: ºC/W
C23: Θcs | D23: 0.5 | E23: ºC/W
C24: Θsa | D24: 13.61 | E24: ºC/W
C25: Ta | D25: 35 | E25: ºC
C26: Θja | D26: =D22+D23+D24 -> 15 | E26: ºC/W
C27: Tj | D27: =D21*D26+D25 -> 125 | E27: ºC
B29: Slove Power Dissipation | C29: Tj | D29: 125 | E29: ºC
C30: Θjc | D30: 0.89 | E30: ºC/W
C31: Θcs | D31: 0.5 | E31: ºC/W
C32: Θsa | D32: 15.5 | E32: ºC/W
C33: Ta | D33: 35 | E33: ºC
C34: Θja | D34: =D30+D31+D32 -> 16.89 | E34: ºC/W
C35: Pd | D35: =(D29-D33)/D34 -> 5.328596803 | E35: W
B38: Slove heat sink thermal resistance | C38: Tj | D38: 125 | E38: ºC
C39: Pd | D39: 6 | E39: W
C40: Θjc | D40: 0.89 | E40: ºC/W
C41: Θcs | D41: 0.5 | E41: ºC/W
C42: Ta | D42: 35 | E42: ºC
C43: Θsa | D43: =(D38-D39*D40-D39*D41-D42)/D39 -> 13.61 | E43: ºC/W
B46: Slove insulator thermal resistance | C46: Θjc | D46: 0.89 | E46: ºC/W
C47: Θsa | D47: 15.5 | E47: ºC/W
C48: Θja | D48: 16.89 | E48: ºC/W
C49: Θcs | D49: =D48-D46-D47 -> 0.5 | E49: ºC/W
B52: References | C52: https://en.wikipedia.org/wiki/Junction_temperature
C53: https://www.re-innovation.co.uk/docs/heatsink-calculations/
C54: https://www.designworldonline.com/how-to-select-a-suitable-heat-sink/
C55: https://www.cuidevices.com/product/resource/calculators/heat-sink-calculator

Sheet Thermal Noise
A1: Index
B3: Formulas:
B15: Slove Thermal Noise: | C15: T= | D15: 23 | E15: Celcius
C16: R= | D16: 1000 | E16: Ohms
C17: B= | D17: 100000000 | E17: Hertz
C18: K= | D18: =D15+273.15 -> 296.15 | E18: Kelvin
C19: V= | D19: =SQRT(4* (1.380649*10^-23)*D16*D18*D17) -> 4.044152328e-05 | E19: RMS Volt
C20: dBV= | D20: =20*LOG(D19) -> -87.86344989 | E20: dBV
B22: References:
C23: https://en.wikipedia.org/wiki/Johnson%E2%80%93Nyquist_noise

Sheet Heat Sink Calculator
A1: Index
B3: Formulas:
B15: Slove volume: | C15: Power | D15: 6 | E15: Watt
C16: Volumetric thermal resistance | D16: 50 | E16: Rv
C17: Thermal junction | D17: 125 | E17: ºC
C18: Ambient temperature | D18: 35 | E18: ºC
C19: Heat sink volume | D19: =(D15*D16)/(D17-D18) -> 3.333333333 | E19: cm3
B22: Slove power: | C22: Heat sink volume | D22: 3.333333333 | E22: cm3
C23: Volumetric thermal resistance | D23: 50 | E23: Rv
C24: Thermal junction | D24: 125 | E24: ºC
C25: Ambient temperature | D25: 35 | E25: ºC
C26: Power | D26: =D22/D23*(D24-D25) -> 6 | E26: Watt
B29: Slove Volume: | C29: Base thickness | D29: 0.2 | E29: cm
C30: Base width | D30: 1.4 | E30: cm
C31: Base length | D31: 1.4 | E31: cm
C32: Fin thickness | D32: 0.4 | E32: cm
C33: Fin width | D33: 0.2 | E33: cm
C34: Fin lenght | D34: 0.2 | E34: cm
C35: Fins count | D35: 16 | E35: number
C36: Base volume | D36: =(D29*D30*D31) -> 0.392 | E36: cm3
C37: Fin volume | D37: =(D32*D33*D34) -> 0.016 | E37: cm3
C38: Total volume | D38: =D36+(D37*D35) -> 0.648 | E38: cm3
C39: Thermal Resistance | D39: =(D33/(237*D34*D32)/D35) -> 0.0006592827004 | E39: ºC/W
B44: References:
C45: https://celsiainc.com/resources/calculators/heat-sink-size-calculator/
C46: https://www.google.com/search?q=heat+sink+formula&oq=heat+sink+formula&aqs=chrome.0.35i39j0i22i30l5.18254j0j7&sourceid=chrome&ie=UTF-8

Sheet Buck Converter Power Dissipated
A1: Index
B3: Formulas:
B8: Slove volume: | C8: Voltage | D8: 5 | E8: V
C9: Current | D9: 5 | E9: I
C10: Efeciency | D10: 85 | E10: %
C11: Power | D11: =D8*D9 -> 25 | E11: Watt
C12: Power Draw | D12: =(D8*D9)/100*D10 -> 21.25 | E12: Watt
C13: Power Lost | D13: =(D8*D9)/100*(100-D10) -> 3.75 | E13: Watt
B18: References:
C19: https://www.edaboard.com/threads/what-is-the-formula-to-calculate-power-dissipation-in-a-switching-regulator.286300/
